bitfinex/quotes_ETHUSD_20260305
["timestamp","ask_amount","ask_price","bid_price","bid_amount"]
[1772672153437,0.001,2129.7,2129.2,0.0011]
[1772672153935,0.001,2129.7,2129.3,0.0011]
[1772672154233,0.001,2129.7,2129.2,1.17414991]
[1772672154410,0.001,2129.7,2129.3,0.0011]
[1772672156532,0.001,2129.7,2129.4,0.0011]
[1772672156732,0.001,2129.7,2129.4,1.16]
[1772672158936,1.01784062,2129.7,2129.3,1.17405531]
[1772672161110,0.96376906,2130.1,2129.3,1.17405531]
[1772672161313,0.96376906,2130.1,2129.3,1.17515531]
[1772672162134,0.96376906,2130.1,2129.2,1.17411115]
[1772672162444,0.96376906,2130.0,2128.7,1.1744257]
[1772672162631,0.96376906,2129.8,2128.8,1.161]
[1772672162824,0.96376906,2129.6,2128.9,1.17431537]
[1772672165245,0.96376906,2129.4,2128.9,1.17431537]
[1772672166550,0.96376906,2129.4,2128.9,2.33631537]
[1772672166933,0.96376906,2129.4,2128.9,1.17431537]
[1772672167133,0.96376906,2129.4,2128.9,2.33631537]
[1772672167541,0.96376906,2129.6,2128.9,3.23749214]
[1772672167742,0.96476906,2129.7,2129.0,0.90117677]
[1772672170659,1.17488142,2129.7,2129.1,1.17420506]
[1772672170844,0.96376906,2129.6,2129.2,1.163]
[1772672173243,0.96376906,2129.6,2129.3,1.17409477]
[1772672175576,0.001,2129.7,2129.3,1.17409477]
[1772672176659,0.96476906,2129.7,2129.3,1.17409477]
[1772672177644,0.001,2129.6,2129.3,1.17409477]
[1772672179268,0.86541784,2129.6,2129.3,1.17409477]
[1772672180276,0.86441784,2130.2,2129.4,0.87962566]
[1772672180780,0.86441784,2130.1,2129.4,0.87962566]
[1772672181661,0.86441784,2130.1,2129.5,1.1739845]
[1772672181861,0.86441784,2130.1,2129.6,1.165]
[1772672183384,0.001,2130.3,2129.7,0.87962566]
[1772672183680,0.001,2130.3,2129.6,1.165]
[1772672183681,0.86441784,2130.0,2129.6,1.166]
[1772672185169,0.86441784,2130.0,2129.5,1.166]
[1772672185782,0.86441784,2129.9,2129.6,1.17392937]
[1772672189406,0.86441784,2129.9,2129.5,1.17395369]
[1772672189706,0.89563123,2129.8,2129.6,1.168]
[1772672191191,0.89563123,2129.8,2129.5,1.1739841]
[1772672191374,0.89563123,2129.8,2129.5,2.3419841]
[1772672191797,0.89563123,2129.8,2129.4,1.17399809]
[1772672191999,0.89563123,2129.7,2129.4,1.17399809]
[1772672192369,0.89563123,2129.7,2129.5,0.0011]
[1772672192803,0.89563123,2129.7,2129.2,5.86551822]
[1772672192804,0.89563123,2129.6,2129.2,1.17410654]
[1772672193005,0.89563123,2129.6,2129.3,1.169]
[1772672193308,0.89563123,2129.6,2129.3,0.0011]
[1772672194577,0.89563123,2129.4,2129.0,1.17535145]
[1772672195587,0.001,2129.7,2129.0,1.17645145]
[1772672195811,0.001,2129.7,2129.1,0.85626145]
[1772672197399,0.001,2129.7,2129.3,0.8516555]
[1772672197606,0.001,2129.7,2129.4,1.171]
[1772672198888,0.001,2129.7,2129.5,0.0011]
[1772672202015,0.001,2129.7,2129.5,1.1750845]
[1772672203206,0.001,2129.7,2129.5,0.0011]
[1772672203509,0.89663123,2129.7,2129.5,0.0011]
[1772672205449,0.001,2129.7,2129.5,0.0022]
[1772672205951,0.89563123,2130.2,2129.5,0.83132505]
[1772672206255,0.89563123,2130.2,2129.6,1.17392937]
[1772672207152,0.89563123,2130.1,2129.6,1.17392937]
[1772672207680,0.89563123,2130.1,2129.5,0.0011]
[1772672207955,0.89563123,2130.1,2129.6,1.1771]
[1772672208520,0.87424983,2130.0,2129.6,2.35098158]
[1772672209427,0.87424983,2130.2,2129.6,2.35098158]
[1772672209627,0.001,2130.3,2129.7,0.82179294]
[1772672209828,0.87524983,2130.3,2129.7,0.82289294]
[1772672210024,0.001,2130.3,2129.7,0.82289294]
[1772672210245,0.87524983,2130.3,2129.7,0.82289294]
[1772672212376,0.87524983,2130.3,2129.8,1.98804074]
[1772672213877,0.87424983,2130.4,2129.8,1.98552567]
[1772672214174,0.87424983,2130.4,2129.9,0.0011]
[1772672214375,0.87424983,2130.4,2130.0,1.179]
[1772672214547,2.04865099,2130.6,2130.0,1.98819577]
[1772672214745,0.001,2130.6,2130.1,0.81029577]
[1772672215074,0.87524983,2130.6,2130.1,0.81029577]
[1772672216248,0.87524983,2130.6,2130.2,1.17359872]
[1772672217976,0.001,2130.6,2130.3,0.79921017]
[1772672218171,0.001,2130.6,2130.4,1.181]
[1772672218673,0.001,2130.6,2130.5,1.17343346]
[1772672219900,0.001,2130.6,2130.5,1.17453346]
[1772672220996,0.001,2130.6,2129.5,4.75274254]
[1772672220997,0.87524983,2130.6,2129.9,1.1737274]
[1772672221169,0.87524983,2130.6,2129.9,1.183]
[1772672223066,0.87424983,2130.4,2129.8,0.0011]
[1772672225210,0.87424983,2130.2,2129.8,0.0011]
[1772672227726,0.87424983,2130.1,2129.8,0.0011]
[1772672228029,0.87424983,2130.1,2129.6,1.17392937]
[1772672228910,0.87424983,2130.1,2129.5,0.0011]
[1772672229109,0.87424983,2130.1,2129.5,1.17507227]
[1772672229310,0.87424983,2130.1,2129.5,2.36007227]
[1772672230437,0.87424983,2130.1,2129.6,0.77128644]
[1772672230731,0.87424983,2130.3,2130.0,0.0011]
[1772672232943,0.89575546,2130.3,2130.0,0.0011]
[1772672233732,0.02150563,2130.3,2130.0,0.86801328]
[1772672234148,0.001,2130.4,2130.0,0.86801328]
[1772672234936,0.001,2130.4,2130.1,1.17365381]
[1772672238155,0.87424983,2130.3,2130.0,0.0011]
[1772672238557,0.87424983,2130.3,2130.0,1.17480567]
[1772672239327,0.001,2130.4,2130.0,2.04917324]
[1772672239539,0.001,2130.6,2130.1,0.87436757]
[1772672239755,0.001,2130.6,2130.3,0.87436757]
[1772672240060,0.001,2130.6,2130.2,1.17359872]
[1772672240061,2.00245369,2131.1,2130.5,0.87436757]
[1772672240261,0.82930891,2131.0,2130.5,0.87436757]
[1772672240459,0.82930891,2131.0,2130.0,1.17480523]
[1772672240629,0.82930891,2131.0,2130.1,1.188]
[1772672240834,0.82930891,2131.0,2130.0,2.0491728]
[1772672241163,0.82930891,2130.8,2130.2,1.188]
[1772672242484,0.82930891,2130.6,2130.2,1.188]
[1772672242675,0.82930891,2130.6,2130.2,2.36159627]
[1772672243287,0.82930891,2130.6,2130.2,1.188]
[1772672243656,0.82930891,2130.6,2130.2,2.36159783]
[1772672243856,0.83030891,2130.6,2130.2,2.36159783]
[1772672247965,0.90109664,2130.5,2130.2,1.19]
[1772672249099,0.001,2130.6,2130.2,2.02152678]
[1772672249399,0.001,2130.6,2130.3,2.00507041]
[1772672253403,0.001,2130.6,2130.4,0.83152678]
[1772672254397,0.001,2130.6,2130.1,4.6957023]
[1772672254398,0.90209664,2130.6,2130.1,1.17471121]
[1772672254596,0.001,2130.6,2130.3,2.02452678]
[1772672254910,0.001,2130.6,2130.4,0.83152678]
[1772672255283,0.001,2130.6,2130.3,1.193]
[1772672256711,0.001,2130.6,2130.4,1.17348854]
[1772672257013,0.001,2130.6,2130.4,2.00501532]
[1772672257793,0.001,2130.6,2130.4,1.17348854]
[1772672257991,0.001,2130.6,2130.4,2.00501532]
[1772672260517,0.001,2130.6,2130.4,3.20001532]
[1772672262687,0.001,2130.6,2130.4,3.20101532]
[1772672264518,0.001,2130.6,2130.5,0.83152678]
[1772672264708,0.001,2130.6,2130.4,1.196]
[1772672264709,0.90209664,2130.6,2130.4,1.196]
[1772672264909,0.001,2130.6,2130.4,2.36947635]
[1772672266428,0.001,2130.6,2130.5,1.198]
[1772672269243,0.8631888,2131.1,2130.6,0.85653713]
[1772672270430,0.8631888,2131.1,2130.7,1.2]
[1772672271508,0.8631888,2131.1,2130.6,0.85653713]
[1772672271710,0.8631888,2130.9,2130.5,0.0011]
[1772672271916,0.8631888,2130.9,2130.5,1.2021]
[1772672273742,0.8631888,2130.8,2130.5,1.2021]
[1772672273943,0.8631888,2130.8,2130.5,3.23206525]
[1772672274248,0.8631888,2130.9,2130.5,3.23206525]
[1772672276048,0.8631888,2131.1,2130.6,0.85653713]
[1772672276347,0.8631888,2131.1,2130.6,1.203]
[1772672276523,0.4172989,2131.0,2130.6,1.203]
[1772672276727,0.8631888,2130.9,2130.6,1.203]
[1772672278445,0.8631888,2130.8,2130.5,1.17449549]
[1772672278632,0.8631888,2130.8,2130.5,2.37849549]
[1772672279964,0.8631888,2130.8,2130.5,1.2051]
[1772672280172,0.8631888,2130.8,2130.5,0.0011]
[1772672280173,0.8631888,2130.7,2130.5,0.0011]
[1772672280372,0.8631888,2130.7,2130.5,1.2051]
[1772672280754,0.8631888,2130.7,2130.3,0.0011]
[1772672280950,0.8631888,2130.7,2130.3,1.17463401]
[1772672281150,1.17318523,2131.0,2130.4,0.85653713]
[1772672281370,2.80987933,2130.9,2130.4,0.85653713]
[1772672281544,2.03629679,2131.1,2130.4,0.85653713]
[1772672281866,0.8631888,2130.9,2130.7,0.0011]
[1772672284267,0.8631888,2131.1,2130.7,0.85763713]
[1772672285856,0.8631888,2131.1,2130.7,0.0011]
[1772672286483,2.03630691,2131.1,2130.7,0.0011]
[1772672287299,0.8631888,2131.1,2130.7,0.85763713]
[1772672287480,0.8631888,2131.0,2130.7,1.2081]
[1772672288796,2.03635682,2131.0,2130.7,0.0011]
[1772672288968,0.8631888,2130.9,2130.7,1.2081]
[1772672289896,0.8631888,2131.1,2130.7,2.06463713]
[1772672290070,2.03629465,2131.1,2130.7,2.06463713]
[1772672290265,0.8631888,2131.0,2130.7,0.0011]
[1772672290486,0.8631888,2131.0,2130.5,0.0011]
[1772672290792,0.8631888,2130.8,2130.5,0.0011]
[1772672291992,0.8631888,2130.8,2130.5,0.85763713]
[1772672293472,0.8631888,2130.8,2130.5,2.03105167]
[1772672294981,0.8631888,2130.8,2130.5,0.85763713]
[1772672295297,0.8631888,2130.8,2130.5,2.03106529]
[1772672295993,0.8631888,2130.8,2130.7,0.001]
[1772672298684,2.47567268,2130.8,2130.7,0.001]
[1772672299183,0.8272868,2130.7,2130.5,1.2131]
[1772672300778,0.8272868,2130.6,2130.5,0.0011]
[1772672300990,0.8272868,2130.5,2130.3,0.0011]
[1772672301174,0.8272868,2130.3,2130.1,0.0011]
[1772672301377,0.8272868,2130.1,2129.9,0.0011]
[1772672303115,0.8272868,2130.3,2129.9,0.0011]
[1772672303293,2.00083561,2130.3,2129.9,0.0011]
[1772672303487,0.8272868,2130.2,2129.9,0.0011]
[1772672307114,0.8272868,2130.2,2129.9,0.80403635]
[1772672309420,0.8272868,2130.2,2130.1,0.001]
[1772672316843,2.00088552,2130.2,2130.1,0.001]
[1772672323918,0.81452013,2130.1,2130.0,0.0011]
[1772672324225,0.81452013,2130.0,2129.7,0.0011]
[1772672324544,0.81452013,2129.8,2129.3,0.0011]
[1772672324734,1.17387425,2129.7,2129.3,0.0011]
[1772672324932,0.81452013,2129.6,2129.3,0.0011]
[1772672325540,0.81452013,2129.6,2129.3,0.80403635]
[1772672325721,1.17387425,2129.7,2129.3,0.80403635]
[1772672325921,1.98839438,2129.7,2129.3,0.80403635]
[1772672329639,1.17387425,2129.7,2129.3,0.80403635]
[1772672329843,0.73809868,2129.6,2129.3,0.80403635]
[1772672330649,0.73809868,2129.6,2129.3,0.0011]
[1772672331726,1.1739845,2129.5,2129.3,0.0011]
[1772672332857,1.91208318,2129.5,2129.3,0.0011]
[1772672334461,0.73809868,2129.4,2129.0,0.0011]
[1772672334632,1.1739845,2129.5,2128.8,0.0011]
[1772672334633,0.73809868,2129.2,2128.8,0.0011]
[1772672334956,0.73809868,2129.4,2128.9,0.81141832]
[1772672335157,0.43828314,2129.3,2128.9,0.81141832]
[1772672335352,0.73809868,2129.4,2128.9,0.81141832]
[1772672335555,1.17499258,2129.5,2129.3,0.0011]
[1772672335855,0.001,2129.5,2129.3,0.81251832]
[1772672336531,0.73809868,2129.8,2129.5,0.81141832]
[1772672337344,1.91192331,2129.8,2129.5,0.81141832]
[1772672337661,0.73809868,2129.8,2129.5,0.81141832]
[1772672340042,0.73809868,2129.8,2129.5,1.98539671]
[1772672340444,0.73809868,2129.8,2129.5,0.81141832]
[1772672340645,0.73809868,2129.8,2129.5,1.9853987]
[1772672340846,0.73809868,2130.3,2129.6,0.81141832]
[1772672341047,0.43797452,2130.2,2129.6,0.81141832]
[1772672341253,1.91164343,2130.3,2129.6,0.81141832]
[1772672341452,0.43797952,2130.2,2129.6,0.81141832]
[1772672341761,0.73809868,2130.3,2129.8,0.81141832]
[1772672341951,0.43797952,2130.2,2129.8,0.81141832]
[1772672342152,0.73809868,2130.2,2129.6,0.81141832]
[1772672342454,0.73809868,2130.0,2129.4,1.98542432]
[1772672343670,0.73809868,2130.2,2129.5,0.81141832]
[1772672343878,0.43814595,2130.1,2129.7,0.81141832]
[1772672344051,1.9116974,2130.2,2129.7,0.81141832]
[1772672344253,0.43808631,2130.1,2129.7,0.81141832]
[1772672344455,1.9116974,2130.2,2129.7,0.81141832]
[1772672344667,0.43814109,2130.1,2129.7,0.81141832]
[1772672344974,1.9116974,2130.2,2129.7,0.81141832]
[1772672345273,0.43814109,2130.1,2129.7,0.81141832]
[1772672345459,1.9116974,2130.2,2129.7,0.81141832]
[1772672345658,0.43818964,2130.1,2129.7,0.81141832]
[1772672345859,1.9116974,2130.2,2129.7,1.98525565]
[1772672346079,0.43818964,2130.1,2129.7,1.98525565]
[1772672346268,1.9116974,2130.2,2129.7,1.98525565]
[1772672346577,0.43824139,2130.1,2129.7,1.98525565]
[1772672346778,1.9116974,2130.2,2129.7,1.98525565]
[1772672346974,0.43824139,2130.1,2129.7,1.98525565]
[1772672347153,1.9116974,2130.2,2129.7,1.98525565]
[1772672347355,0.43829361,2130.1,2129.7,1.98525565]
[1772672347564,1.9116974,2130.2,2129.7,1.98525565]
[1772672347860,0.43829361,2130.1,2129.7,1.98529147]
[1772672348070,0.001,2129.8,2129.7,1.98529147]
[1772672349058,0.73809868,2130.2,2129.8,0.81141832]
[1772672350364,1.91169819,2130.2,2129.8,0.81141832]
[1772672350563,0.73809868,2130.2,2129.8,0.81141832]
[1772672352101,0.73809868,2130.0,2129.6,0.0011]
[1772672352795,0.73809868,2130.2,2129.7,0.81141832]
[1772672353096,0.43853639,2130.1,2129.7,0.81141832]
[1772672353263,0.73809868,2130.2,2129.7,0.81141832]
[1772672353596,1.17666719,2130.1,2129.7,0.81141832]
[1772672353755,0.73809868,2130.1,2129.7,0.81141832]
[1772672355102,0.73809868,2130.1,2129.7,1.98525134]
[1772672356795,1.9117548,2130.1,2129.7,1.98525134]
[1772672357988,0.73809868,2130.1,2129.7,1.98525134]
[1772672358593,0.72044378,2130.0,2129.6,1.17499235]
[1772672358771,0.72044378,2130.0,2129.6,0.0011]
[1772672359783,0.72044378,2129.9,2129.6,0.0011]
[1772672360179,0.72144378,2129.9,2129.6,0.0011]
[1772672360501,0.001,2129.9,2129.6,0.76035903]
[1772672361989,0.001,2129.9,2129.6,1.17497801]
[1772672362178,0.001,2129.9,2129.7,0.75925903]
[1772672364506,0.001,2129.9,2129.7,1.93309199]
[1772672369288,0.001,2129.9,2129.7,2.39883296]
[1772672369488,0.001,2129.9,2129.7,3.13453732]
[1772672372016,0.74582447,2129.9,2129.7,1.225]
[1772672374915,0.74582447,2129.9,2129.6,1.96580436]
[1772672375213,1.18466101,2129.8,2129.6,0.0011]
[1772672375400,0.74482447,2129.7,2129.6,0.0011]
[1772672377410,1.91869872,2129.7,2129.6,0.0011]
[1772672377612,0.74482447,2129.7,2129.6,0.0011]
[1772672377794,2.35851404,2129.7,2129.6,0.0011]
[1772672378919,0.74482447,2129.6,2129.3,0.0011]
[1772672379114,1.61368957,2129.7,2129.3,0.0011]
[1772672379115,0.74482447,2129.4,2129.3,0.0011]
[1772672379321,0.74482447,2129.3,2129.1,0.0011]
[1772672379617,0.74482447,2129.3,2129.1,0.0022]
[1772672380225,0.74482447,2129.3,2129.1,0.0011]
[1772672380699,1.91893329,2129.3,2129.1,0.0011]
[1772672380896,0.74482447,2129.2,2129.1,0.0011]
[1772672385426,1.91891944,2129.3,2129.1,0.0011]
[1772672385720,0.74482447,2129.2,2129.1,0.0011]
[1772672385925,0.74482447,2129.2,2129.1,0.0022]
[1772672387101,0.74482447,2129.2,2129.0,0.0011]
[1772672387617,1.91902953,2129.1,2129.0,0.0011]
[1772672388132,0.74482447,2129.1,2129.0,0.0011]
[1772672388312,1.17409875,2129.3,2129.0,0.0011]
[1772672388517,0.74482447,2129.2,2129.0,0.0011]
[1772672390016,0.69411652,2129.1,2129.0,0.0011]
[1772672391751,1.86825317,2129.3,2129.0,0.0011]
[1772672392025,1.86828192,2129.2,2128.8,1.9111433]
[1772672392206,1.86828192,2129.2,2128.9,0.0011]
[1772672394508,0.69411652,2129.2,2128.9,0.74696497]
[1772672394712,1.86826979,2129.2,2128.9,0.74696497]
[1772672396837,0.001,2129.1,2128.9,0.74696497]
[1772672397034,0.69411652,2129.0,2128.5,0.0011]
[1772672397340,0.69411652,2128.8,2128.0,0.74586497]
[1772672397512,0.69411652,2128.8,2128.7,0.0011]
[1772672397705,0.69411652,2128.7,2128.4,0.74586497]
[1772672397905,0.69411652,2128.7,2128.4,0.0011]
[1772672399011,0.69411652,2128.5,2128.0,0.74586497]
[1772672399318,0.69411652,2128.5,2128.3,0.0011]
[1772672400210,0.69411652,2128.7,2128.3,0.74696497]
[1772672400411,1.86843189,2128.9,2128.5,0.74586497]
[1772672400606,0.69411652,2128.9,2128.5,0.74586497]
[1772672400836,0.69411652,2128.9,2128.6,0.0011]
[1772672401041,0.69411652,2128.9,2128.3,0.74586497]
[1772672401333,0.69411652,2128.7,2128.3,0.74696497]
[1772672402535,0.69411652,2128.5,2127.7,1.97886497]
[1772672402749,0.69411652,2128.3,2127.8,0.0011]
[1772672402918,0.69411652,2128.1,2127.1,0.74586497]
[1772672403123,0.69411652,2128.1,2127.2,1.17525385]
[1772672403124,0.69411652,2127.8,2127.2,1.17525385]
[1772672403337,1.17490753,2127.9,2127.3,0.74586497]
[1772672403528,1.17490753,2127.9,2127.3,0.74696497]
[1772672403728,1.86902405,2127.9,2127.3,0.74696497]
[1772672404270,0.69411652,2127.9,2127.3,0.74696497]
[1772672404461,1.86890277,2128.1,2127.3,0.74696497]
[1772672404742,1.8688573,2128.2,2127.3,0.74696497]
[1772672405139,1.8688573,2128.2,2127.5,0.74586497]
[1772672405726,1.17474078,2128.2,2127.5,0.74586497]
[1772672405927,1.17467911,2128.3,2127.5,1.97186497]
[1772672406129,1.17467911,2128.3,2127.6,0.74696497]
[1772672406335,1.86854222,2128.7,2127.6,0.74696497]
[1772672407040,2.07418271,2128.8,2127.6,0.74696497]
[1772672407221,0.69411652,2128.7,2127.8,0.74586497]
[1772672408237,2.07414,2128.8,2128.0,0.74586497]
[1772672408438,0.89976801,2128.8,2128.0,0.74586497]
[1772672408641,0.69411652,2128.7,2128.1,0.74696497]
[1772672408948,0.69411652,2128.7,2128.1,0.74586497]
[1772672410054,1.86857926,2128.7,2128.2,0.74586497]
[1772672410260,0.001,2128.5,2128.2,0.74586497]
[1772672410947,0.001,2128.5,2127.7,1.92082021]
[1772672410948,0.69511652,2128.5,2127.7,1.92082021]
[1772672411180,0.69511652,2128.5,2127.4,0.74696497]
[1772672411181,0.69411652,2128.3,2127.4,0.74696497]
[1772672411360,0.69411652,2128.1,2127.4,0.74696497]
[1772672412070,1.17481203,2128.0,2127.4,0.74696497]
[1772672412375,0.69411652,2127.9,2127.4,0.0011]
[1772672412578,0.69411652,2127.9,2127.3,0.0011]
[1772672412740,0.69411652,2127.9,2127.3,0.0022]
[1772672413162,0.69411652,2127.7,2127.3,0.0022]
[1772672414044,1.1750329,2127.6,2127.3,0.0022]
[1772672414375,1.86914942,2127.6,2127.3,0.0022]
[1772672415368,0.69411652,2127.5,2127.3,0.0011]
[1772672416166,1.17514336,2127.4,2127.3,0.0011]
[1772672416465,1.86925988,2127.4,2127.0,0.0011]
[1772672416666,1.86925988,2127.4,2127.1,0.0011]
[1772672416865,1.17514336,2127.4,2127.1,0.0011]
[1772672417072,0.69411652,2127.3,2126.8,0.0011]
[1772672418146,0.69411652,2127.1,2126.8,0.0011]
[1772672418548,1.17524037,2127.3,2126.8,0.68528992]
[1772672418760,1.89572884,2127.5,2126.8,0.68528992]
[1772672419283,0.72060512,2127.4,2126.8,0.68528992]
[1772672419440,0.72060512,2127.4,2126.8,0.0011]
[1772672420346,0.72060512,2127.2,2126.8,0.0011]
[1772672420664,0.72060512,2127.2,2126.4,0.68418992]
[1772672420867,0.72060512,2127.2,2126.5,0.68418992]
[1772672421179,5.42042796,2127.8,2126.5,0.68418992]
[1772672421869,0.72060512,2127.7,2126.5,0.68418992]
[1772672422468,1.1750329,2127.6,2127.0,0.0011]
[1772672422674,1.89563802,2127.6,2127.0,0.0011]
[1772672422878,0.72060512,2127.8,2127.0,0.68528992]
[1772672423367,0.72060512,2127.8,2127.0,0.0011]
[1772672424143,2.78746029,2127.7,2127.0,0.0011]
[1772672424349,0.72060512,2127.6,2127.0,0.0011]
[1772672424574,0.72060512,2127.4,2127.0,0.0011]
[1772672426967,1.17519602,2127.4,2127.0,0.0011]
[1772672427173,1.1751334,2127.5,2127.0,0.68089666]
[1772672427373,1.87565514,2127.6,2127.0,0.68089666]
[1772672427678,0.70058322,2127.6,2127.0,0.68089666]
[1772672427883,1.17497767,2127.7,2127.0,0.68089666]
[1772672428178,1.87556089,2127.7,2127.0,0.68089666]
[1772672428384,0.70058322,2127.6,2127.0,0.68089666]
[1772672429352,0.70058322,2127.4,2127.0,0.0011]
[1772672431483,0.70058322,2127.6,2127.0,0.0011]
[1772672431983,1.87556089,2127.7,2127.0,0.68089666]
[1772672432157,2.79256125,2127.6,2127.0,0.68089666]
[1772672432367,3.49314447,2127.6,2127.0,0.68089666]
[1772672432579,0.70058322,2127.6,2127.0,0.68089666]
[1772672433696,1.17508813,2127.5,2127.0,1.8562108]
[1772672433894,0.70058322,2127.6,2127.1,0.67979666]
[1772672434073,0.70058322,2127.8,2127.1,0.67979666]
[1772672435200,0.70058322,2127.6,2127.0,1.17646172]
[1772672435493,0.70058322,2127.6,2127.0,0.0011]
[1772672435702,0.001,2127.4,2127.0,0.0011]
[1772672435874,0.001,2127.4,2127.0,0.68089666]
[1772672437897,0.001,2127.4,2127.1,1.85510576]
[1772672438208,0.34794504,2128.3,2127.3,0.67979666]
[1772672438781,0.001,2128.5,2127.3,0.74533266]
[1772672440118,0.001,2128.5,2127.5,0.74533266]
[1772672441787,0.001,2128.5,2127.7,0.67979666]
[1772672441998,0.001,2128.5,2128.0,0.67979666]
[1772672442304,0.001,2129.1,2128.5,0.67979666]
[1772672443877,0.70058322,2129.3,2128.6,1.17448087]
[1772672444089,0.70058322,2129.3,2128.7,0.67979666]
[1772672444604,0.70058322,2129.3,2128.5,1.17449404]
[1772672444798,0.70058322,2129.3,2128.5,1.8542907]
[1772672446189,1.17414991,2129.2,2128.5,1.8542907]
[1772672447202,0.70058322,2129.1,2128.4,1.17455919]
[1772672447506,0.70058322,2129.1,2128.2,0.03497101]
[1772672447714,0.70058322,2129.1,2127.2,1.90279666]
[1772672447715,0.70058322,2128.6,2127.2,1.90279666]
[1772672448093,0.70058322,2128.4,2127.2,0.67979666]
[1772672448295,0.70058322,2128.2,2127.2,1.85503374]
[1772672448623,0.70058322,2128.2,2127.3,0.69950496]
[1772672450309,1.17475682,2128.1,2127.4,1.17514336]
[1772672450698,0.67795749,2128.0,2127.3,0.69950496]
[1772672450893,0.67795749,2128.0,2127.2,1.17523293]
[1772672451200,1.17475682,2128.1,2127.3,0.69950496]
[1772672452925,0.67795749,2128.0,2127.3,1.87466467]
[1772672455229,1.17486724,2127.9,2127.3,1.87466467]
[1772672456437,1.85282473,2127.9,2127.3,1.227]
[1772672456815,0.67795749,2127.9,2127.3,1.227]
[1772672457136,1.17484462,2128.0,2127.3,1.92650496]
[1772672457432,1.17484462,2128.0,2127.4,1.17514336]
[1772672457635,1.85275543,2128.1,2127.4,1.87464832]
[1772672458904,1.85272923,2128.1,2127.5,0.69950496]
[1772672459526,1.85272923,2128.1,2127.5,1.8745815]
[1772672460333,0.67795749,2128.0,2127.4,1.17620604]
[1772672460921,1.85268276,2128.2,2127.5,0.69950496]
[1772672461220,1.85258608,2128.4,2127.5,0.69950496]
[1772672461421,1.85258608,2128.4,2127.7,0.69950496]
[1772672462032,0.67795749,2128.3,2127.7,0.69950496]
[1772672462235,0.67795749,2128.3,2127.4,0.0011]
[1772672463307,0.67795749,2128.1,2127.4,1.17624036]
[1772672463509,1.85276952,2128.0,2127.4,0.0011]
[1772672464432,0.67795749,2127.9,2127.1,0.0011]
[1772672464729,0.67795749,2127.9,2127.1,1.17640232]
[1772672465711,1.85260392,2128.3,2127.2,0.69950496]
[1772672466437,1.17464643,2128.3,2127.2,0.69950496]
[1772672466930,0.67795749,2128.2,2127.2,0.69950496]
[1772672467136,0.67795749,2128.2,2127.4,0.69950496]
[1772672467836,1.17464643,2128.3,2127.4,0.69950496]
[1772672468336,1.17464643,2128.3,2127.6,0.69950496]
[1772672470136,1.85255226,2128.4,2127.7,1.87448263]
[1772672471542,0.67795749,2128.3,2127.7,1.17497767]
[1772672472214,1.17470162,2128.2,2127.6,4.6999107]
[1772672472420,1.17470162,2128.2,2127.6,5.39941566]
[1772672472620,1.85264982,2128.3,2127.6,5.39941566]
[1772672473015,0.67795749,2128.2,2127.6,0.0011]
[1772672473228,0.67795749,2128.2,2127.1,1.17640667]
[1772672473426,0.67795749,2128.0,2127.1,1.17640667]
[1772672473738,0.67795749,2128.0,2127.4,0.0011]
[1772672474314,1.85282473,2127.9,2127.4,0.0011]
[1772672474714,0.67795749,2127.8,2127.4,0.0011]
[1772672476726,0.67795749,2127.9,2127.4,0.0011]
[1772672477125,0.67795749,2127.7,2127.4,0.0011]
[1772672479343,1.85294251,2127.7,2127.4,0.0011]
[1772672479639,5.36886357,2127.9,2127.4,0.0011]
[1772672479834,3.25026221,2127.8,2127.4,0.0011]
[1772672480036,0.43920584,2127.7,2127.4,0.0011]
[1772672480348,1.84415735,2127.9,2127.4,0.0011]
[1772672480529,3.25019174,2127.8,2127.4,0.0011]
[1772672480728,1.17486979,2127.9,2127.4,0.61929408]
[1772672480930,3.25010651,2127.8,2127.4,0.0011]
[1772672481233,0.66924794,2128.1,2127.4,0.61929408]
[1772672481437,3.48033574,2128.0,2127.4,0.61929408]
[1772672481636,2.8110878,2127.9,2127.4,0.61929408]
[1772672483226,0.001,2128.2,2127.6,0.61819408]
[1772672483428,1.17570291,2128.2,2127.8,0.61819408]
[1772672483651,1.17570291,2128.2,2127.7,1.232]
[1772672483652,1.84495085,2128.2,2127.7,1.232]
[1772672484752,0.001,2128.2,2127.7,1.85019408]
[1772672485058,0.001,2128.2,2127.8,0.61819408]
[1772672485258,0.001,2128.2,2128.0,0.61819408]
[1772672487374,0.001,2128.2,2127.8,0.65200344]
[1772672487539,0.001,2128.2,2127.9,1.232]
[1772672488951,0.67008047,2128.2,2127.7,1.17494066]
[1772672490276,1.84478812,2128.2,2127.7,1.17494066]
[1772672490854,1.84478812,2128.2,2127.6,5.93412176]
[1772672490855,0.66908047,2128.1,2127.6,0.0011]
[1772672492448,1.17481203,2128.0,2127.6,0.0011]
[1772672492648,1.8438925,2128.0,2127.6,0.0011]
[1772672492852,0.66908047,2127.8,2127.1,1.17640831]
[1772672493083,0.66908047,2127.6,2127.1,0.0011]
[1772672493570,0.66908047,2127.4,2127.1,0.0011]
[1772672494779,1.1751986,2127.3,2127.1,0.0011]
[1772672495143,1.84427907,2127.3,2126.9,0.0011]
[1772672496688,0.66908047,2127.9,2126.9,0.65310344]
[1772672496969,0.66908047,2127.7,2127.0,1.234]
[1772672497372,0.66908047,2127.7,2126.9,0.65310344]
[1772672497557,0.66908047,2127.7,2126.9,1.88810344]
[1772672497945,0.66908047,2127.7,2127.3,0.0011]
[1772672498279,0.001,2127.4,2127.3,0.0011]
[1772672500177,0.67008047,2127.4,2127.3,0.0011]
[1772672500779,1.84522383,2127.4,2127.3,0.0011]
[1772672502490,0.66908047,2127.3,2126.5,0.0011]
[1772672502683,0.66908047,2126.9,2126.5,0.0011]
[1772672503872,0.66908047,2126.9,2126.3,0.010158]
[1772672504067,0.66908047,2126.9,2126.3,1e-08]
[1772672504861,0.66908047,2126.7,2126.3,1e-08]
[1772672506761,1.17558544,2126.6,2126.3,1e-08]
[1772672506960,1.17551464,2126.8,2126.3,1e-08]
[1772672507188,1.17546481,2126.9,2126.3,0.65200345]
[1772672508861,4.70161154,2127.0,2126.3,0.65200345]
[1772672508862,5.38447832,2127.0,2126.3,1.82774277]
[1772672509060,0.68286678,2126.9,2126.3,0.65200345]
[1772672509260,0.68286678,2126.9,2126.3,1e-08]
[1772672509794,0.68286678,2126.9,2125.9,1.8415371]
[1772672510090,0.68286678,2126.9,2125.9,0.66556542]
[1772672510295,0.68286678,2126.9,2125.9,1.84152765]